bitfinex-derivatives/quotes_BTCF0:USTF0_20250121
["timestamp","ask_amount","ask_price","bid_price","bid_amount"]
[1737462952315,0.25719769,104520.0,104510.0,0.4726811]
[1737462952505,0.25719769,104520.0,104510.0,0.5580811]
[1737462953006,0.11639769,104520.0,104510.0,0.5580811]
[1737462953207,0.11739769,104520.0,104510.0,0.60637806]
[1737462953406,0.16933456,104530.0,104520.0,0.047879]
[1737462953606,0.16933456,104530.0,104520.0,0.5625771]
[1737462954409,0.16933456,104530.0,104520.0,0.498579]
[1737462954912,0.16933456,104530.0,104520.0,0.5625771]
[1737462955416,0.21720856,104530.0,104520.0,0.5635771]
[1737462955917,0.16933456,104530.0,104520.0,0.499579]
[1737462957013,0.16933456,104530.0,104520.0,0.138779]
[1737462957409,0.04801738,104530.0,104520.0,0.138779]
[1737462957620,0.40881738,104530.0,104520.0,0.048879]
[1737462958307,0.04801738,104530.0,104520.0,0.048879]
[1737462959008,0.52875856,104530.0,104520.0,0.001]
[1737462959711,0.04801738,104530.0,104520.0,0.001]
[1737462959914,0.04801738,104530.0,104520.0,0.409678]
[1737462960117,0.00014338,104530.0,104520.0,0.52961918]
[1737462960416,0.00014338,104530.0,104520.0,0.61441918]
[1737462960610,0.00014338,104530.0,104520.0,0.25361918]
[1737462960808,0.00014338,104530.0,104520.0,0.61441918]
[1737462961316,0.00014338,104530.0,104520.0,0.70161918]
[1737462964909,0.00014338,104530.0,104520.0,0.71088718]
[1737462967018,0.30778773,104560.0,104520.0,0.80655807]
[1737462967319,0.30778773,104560.0,104550.0,0.047865]
[1737462967519,0.16919118,104560.0,104550.0,0.52860618]
[1737462967723,0.16919118,104560.0,104550.0,0.70680618]
[1737462968014,0.11919118,104560.0,104550.0,0.61630618]
[1737462968218,0.07319118,104560.0,104550.0,0.61630618]
[1737462968922,0.06919118,104560.0,104550.0,0.61630618]
[1737462969111,0.08019118,104560.0,104550.0,0.61730618]
[1737462969715,0.07819118,104560.0,104550.0,0.61630618]
[1737462970815,0.009,104560.0,104550.0,0.61630618]
[1737462971322,0.009,104560.0,104550.0,0.496365]
[1737462971522,0.05686,104560.0,104550.0,0.047865]
[1737462971723,0.14346,104560.0,104550.0,0.047865]
[1737462972025,1.64346,104560.0,104550.0,0.408665]
[1737462972220,0.50426,104560.0,104550.0,0.047865]
[1737462972523,0.14346,104560.0,104550.0,0.047865]
[1737462972718,0.23126,104560.0,104550.0,0.047865]
[1737462973126,0.59206,104560.0,104550.0,0.047865]
[1737462973322,0.23126,104560.0,104550.0,0.047865]
[1737462973718,0.59206,104560.0,104550.0,0.047865]
[1737462973914,0.047869,104550.0,104540.0,0.04801638]
[1737462974118,0.139169,104550.0,104540.0,0.04801638]
[1737462974334,0.139169,104550.0,104540.0,0.00014338]
[1737462974926,0.139169,104550.0,104540.0,0.04801638]
[1737462975134,0.141169,104550.0,104540.0,0.04801638]
[1737462975319,0.143169,104550.0,104540.0,0.04801638]
[1737462976035,0.143169,104550.0,104540.0,0.11196783]
[1737462976622,0.503969,104550.0,104540.0,0.04801638]
[1737462977423,0.3648,104550.0,104540.0,0.11196783]
[1737462977820,0.004,104550.0,104540.0,0.28716783]
[1737462978423,0.004,104550.0,104540.0,0.64796783]
[1737462978625,0.004,104550.0,104540.0,0.74362041]
[1737462978825,0.004,104550.0,104540.0,0.83932041]
[1737462979227,0.00014338,104570.0,104560.0,0.047864]
[1737462979425,0.00014338,104570.0,104560.0,0.11181545]
[1737462980530,0.00414338,104570.0,104560.0,0.11181545]
[1737462980923,0.01214338,104570.0,104560.0,0.11281545]
[1737462981118,0.01214338,104570.0,104560.0,0.56924974]
[1737462981625,0.01214338,104570.0,104560.0,0.6027538]
[1737462982022,3.8e-07,104570.0,104560.0,0.6027538]
[1737462982332,3.8e-07,104570.0,104560.0,0.602751]
[1737462982831,3.8e-07,104570.0,104560.0,0.65096287]
[1737462983535,0.00014338,104580.0,104570.0,0.04786]
[1737462983728,0.00014338,104580.0,104570.0,0.64801145]
[1737462983933,0.00014338,104580.0,104570.0,0.73671145]
[1737462984728,0.10143485,104600.0,104570.0,1.19628804]
[1737462984931,0.1,104600.0,104590.0,0.47260145]
[1737462985631,0.1,104600.0,104590.0,0.04785]
[1737462986131,0.147846,104600.0,104590.0,0.04785]
[1737462986333,0.04785,104590.0,104580.0,0.04799538]
[1737462986536,0.40865,104590.0,104580.0,0.00014338]
[1737462986832,0.40865,104590.0,104580.0,0.11194983]
[1737462987043,0.04785,104590.0,104580.0,0.04799838]
[1737462987536,0.40865,104590.0,104580.0,0.04799838]
[1737462987735,0.41065,104590.0,104580.0,0.11194983]
[1737462987937,0.04985,104590.0,104580.0,0.11194983]
[1737462988526,0.04985,104590.0,104580.0,0.04799838]
[1737462988834,0.41065,104590.0,104580.0,0.04799838]
[1737462990441,0.41065,104590.0,104580.0,0.11194983]
[1737462990643,0.3628,104590.0,104580.0,0.11194983]
[1737462992127,0.41065,104590.0,104580.0,0.11194983]
[1737462992331,0.41065,104590.0,104580.0,0.04799838]
[1737462997539,0.41065,104590.0,104580.0,0.11194983]
[1737462997932,0.41065,104590.0,104580.0,0.04799838]
[1737462998446,0.41065,104590.0,104580.0,0.00014338]
[1737462998639,0.41065,104590.0,104580.0,0.04799838]
[1737463000036,0.3608,104590.0,104580.0,0.11194983]
[1737463000345,0.002,104590.0,104580.0,0.11194983]
[1737463000544,0.04985,104590.0,104580.0,0.11194983]
[1737463000841,0.04985,104590.0,104580.0,0.04799838]
[1737463001438,0.34706072,104600.0,104590.0,0.04785]
[1737463001640,0.33761374,104600.0,104590.0,0.04785]
[1737463002243,0.33761374,104600.0,104590.0,0.11180145]
[1737463002645,0.33761374,104600.0,104590.0,0.04785]
[1737463002946,0.33761374,104600.0,104590.0,0.11180145]
[1737463003147,0.33761374,104600.0,104590.0,0.04785]
[1737463003845,0.33961374,104600.0,104590.0,0.04785]
[1737463004045,0.24481374,104600.0,104590.0,0.47260145]
[1737463005145,0.102,104600.0,104590.0,0.47260145]
[1737463005538,0.14295712,104610.0,104590.0,0.56820831]
[1737463005733,0.02769912,104610.0,104600.0,0.6257489]
[1737463005937,0.12120135,104620.0,104610.0,0.047841]
[1737463006132,0.12120135,104620.0,104610.0,0.74873395]
[1737463006339,0.07120135,104620.0,104610.0,0.84434081]
[1737463006538,0.07120135,104620.0,104610.0,0.78038936]
[1737463006738,0.07120135,104620.0,104610.0,0.408641]
[1737463006946,0.07120135,104620.0,104610.0,0.047841]
[1737463007243,0.07120135,104620.0,104610.0,0.11179245]
[1737463008842,0.001,104620.0,104610.0,0.06395145]
[1737463009045,0.001,104620.0,104610.0,0.42475145]
[1737463009348,0.001,104620.0,104610.0,0.47259245]
[1737463010937,0.001,104620.0,104610.0,0.48214648]
[1737463011141,0.001,104620.0,104610.0,0.57773506]
[1737463011342,0.001,104620.0,104610.0,0.48214648]
[1737463011545,0.048837,104620.0,104610.0,0.05739503]
[1737463011744,0.140537,104620.0,104610.0,0.05739503]
[1737463012045,0.140537,104620.0,104610.0,0.12134648]
[1737463012252,0.0927,104620.0,104610.0,0.12134648]
[1737463013845,0.140537,104620.0,104610.0,0.12134648]
[1737463014051,0.501337,104620.0,104610.0,0.047841]
[1737463016253,0.140537,104620.0,104610.0,0.11179245]
[1737463016447,0.001,104620.0,104610.0,0.11179245]
[1737463016647,0.001,104620.0,104610.0,0.5365439]
[1737463017038,0.001,104620.0,104610.0,0.6230439]
[1737463017240,0.001,104620.0,104610.0,0.55909245]
[1737463017449,0.001,104620.0,104610.0,0.6230439]
[1737463018156,0.001,104620.0,104610.0,0.67123832]
[1737463018454,0.001,104620.0,104610.0,0.6230439]
[1737463019946,0.11574388,104630.0,104620.0,0.047837]
[1737463020153,0.11430964,104630.0,104620.0,0.66168845]
[1737463020658,0.11430964,104630.0,104620.0,0.7572679]
[1737463020844,0.11430964,104630.0,104620.0,0.66168845]
[1737463021060,0.11430964,104630.0,104620.0,0.30088845]
[1737463021353,0.047837,104620.0,104610.0,0.06584]
[1737463021651,0.593237,104620.0,104610.0,0.06584]
[1737463021852,0.232437,104620.0,104610.0,0.05684]
[1737463022247,0.593237,104620.0,104610.0,0.05684]
[1737463022552,0.232437,104620.0,104610.0,0.06584]
[1737463022758,0.138537,104620.0,104610.0,0.12979245]
[1737463022961,0.499337,104620.0,104610.0,0.065841]
[1737463023259,0.138537,104620.0,104610.0,0.12979245]
[1737463023752,0.499337,104620.0,104610.0,0.12979245]
[1737463023956,0.001,104620.0,104610.0,0.5545439]
[1737463024151,9.556e-05,104630.0,104620.0,0.047837]
[1737463024354,9.556e-05,104630.0,104620.0,0.47258845]
[1737463024653,9.556e-05,104630.0,104620.0,0.56118845]
[1737463025050,0.32632,104660.0,104650.0,0.047823]
[1737463025051,0.2785,104660.0,104650.0,0.047823]
[1737463025259,0.326318,104660.0,104650.0,0.047823]
[1737463026353,0.329318,104660.0,104650.0,0.047823]
[1737463026857,0.690118,104660.0,104650.0,0.047823]
[1737463027459,0.690119,104660.0,104650.0,0.047823]
[1737463027959,0.047823,104650.0,104640.0,0.04797038]
[1737463028161,0.47257445,104650.0,104640.0,0.00014338]
[1737463028360,0.408623,104650.0,104640.0,0.04797038]
[1737463029253,0.410623,104650.0,104640.0,0.04797038]
[1737463030755,0.002,104650.0,104640.0,0.11192183]
[1737463031364,0.00143376,104670.0,104660.0,0.047818]
[1737463031659,0.2640769,104680.0,104670.0,0.047814]
[1737463031852,0.2640769,104680.0,104670.0,0.5365169]
[1737463032252,0.0929,104680.0,104670.0,0.47256545]
[1737463033447,0.0929,104680.0,104670.0,0.047814]
[1737463033652,0.501509,104680.0,104670.0,0.047814]
[1737463033859,0.140709,104680.0,104670.0,0.047814]
[1737463034061,0.142709,104680.0,104670.0,0.11176545]
[1737463034255,0.503509,104680.0,104670.0,0.11176545]
[1737463035056,0.142709,104680.0,104670.0,0.11176545]
[1737463035766,0.503509,104680.0,104670.0,0.11176545]
[1737463035968,0.142709,104680.0,104670.0,0.047814]
[1737463036164,0.503509,104680.0,104670.0,0.047814]
[1737463036463,0.503509,104680.0,104670.0,0.11176545]
[1737463036763,0.503509,104680.0,104660.0,0.47271183]
[1737463036960,0.408614,104670.0,104660.0,0.11191183]
[1737463037662,0.408614,104670.0,104660.0,0.00014338]
[1737463038467,0.408614,104670.0,104650.0,0.047821]
[1737463038667,0.589618,104660.0,104650.0,0.047821]
[1737463038961,0.047825,104650.0,104640.0,0.047827]
[1737463039163,0.047825,104650.0,104640.0,0.11177845]
[1737463039164,0.408625,104650.0,104640.0,0.11177845]
[1737463039466,0.5418,104660.0,104640.0,0.11177845]
[1737463039467,0.58962,104660.0,104650.0,0.047823]
[1737463039665,0.22896338,104660.0,104650.0,0.11177445]
[1737463040170,0.58976338,104660.0,104650.0,0.11177445]
[1737463040761,0.58976338,104660.0,104650.0,0.11377445]
[1737463041167,0.58976338,104660.0,104650.0,0.11477445]
[1737463041365,0.40876338,104660.0,104650.0,0.11477445]
[1737463041569,0.00014338,104660.0,104650.0,0.11477445]
[1737463041761,0.00014338,104660.0,104650.0,0.56397445]
[1737463041962,0.00014338,104660.0,104650.0,0.7540265]
[1737463042161,0.0855603,104670.0,104660.0,0.047818]
[1737463042364,0.0855603,104670.0,104660.0,0.47256945]
[1737463043576,0.0855603,104680.0,104670.0,0.047814]
[1737463043773,0.0855603,104680.0,104670.0,0.11176545]
[1737463044867,0.0875603,104680.0,104670.0,0.11176545]
[1737463048375,0.002,104680.0,104670.0,0.47256545]
[1737463049578,0.0855603,104690.0,104680.0,0.047809]
[1737463049879,0.0855603,104690.0,104680.0,0.56036045]
[1737463050572,0.0855603,104690.0,104680.0,0.64996045]
[1737463050970,0.0875603,104690.0,104680.0,0.64996045]
[1737463051277,0.23890081,104700.0,104680.0,0.64996045]
[1737463051468,0.23890081,104700.0,104690.0,0.47255645]
[1737463052075,0.0463003,104700.0,104690.0,0.47255645]
[1737463052374,0.31381687,104710.0,104690.0,0.47255645]
[1737463052577,0.31381687,104710.0,104700.0,0.47255145]
[1737463053365,0.31381687,104710.0,104700.0,0.4086]
[1737463054168,0.31381687,104710.0,104700.0,0.47255145]
[1737463055478,0.31381687,104710.0,104700.0,0.47455145]
[1737463056392,0.31381687,104710.0,104700.0,0.47655145]
[1737463056580,0.31607221,104720.0,104710.0,0.047796]
[1737463056780,0.31607221,104720.0,104710.0,0.11174745]
[1737463061171,0.22597221,104720.0,104710.0,0.11174745]
[1737463061374,0.22597221,104720.0,104710.0,0.47254745]
[1737463061678,0.22597221,104720.0,104710.0,0.11174745]
[1737463064870,0.047796,104710.0,104700.0,0.11174845]
[1737463065270,0.408596,104710.0,104700.0,0.11174845]
[1737463065475,0.047796,104710.0,104700.0,0.11174845]
[1737463065678,0.408596,104710.0,104700.0,0.11174845]
[1737463065876,0.047796,104710.0,104700.0,0.11174845]
[1737463066086,0.408596,104710.0,104700.0,0.11274845]
[1737463066283,0.408596,104710.0,104700.0,0.11474845]
[1737463066875,0.408596,104710.0,104700.0,0.050797]
[1737463067282,0.408596,104710.0,104700.0,0.11474845]
[1737463068294,0.408596,104710.0,104700.0,0.11274845]
[1737463068480,0.408596,104710.0,104700.0,0.048797]
[1737463068682,0.408596,104710.0,104700.0,0.11274845]
[1737463069176,0.408596,104710.0,104700.0,0.11174845]
[1737463069383,0.408596,104710.0,104700.0,0.047797]
[1737463069784,0.0478,104700.0,104690.0,0.05732341]
[1737463070089,0.5046,104700.0,104690.0,0.05732341]
[1737463071087,0.5046,104700.0,104690.0,0.05932341]
[1737463071283,0.5046,104700.0,104690.0,0.12327486]
[1737463071688,0.5046,104700.0,104690.0,0.12427486]
[1737463072089,0.5046,104700.0,104690.0,0.12227486]
[1737463072288,0.5046,104700.0,104690.0,0.00952041]
[1737463073288,0.5046,104700.0,104690.0,0.00014338]
[1737463073496,0.047805,104690.0,104680.0,0.00143277]
[1737463073787,0.592405,104690.0,104680.0,0.00143277]
[1737463074687,0.592405,104690.0,104680.0,0.00343277]
[1737463075090,0.592405,104690.0,104680.0,0.11519322]
[1737463075295,0.592405,104690.0,104680.0,0.11619322]
[1737463075694,0.3608,104690.0,104680.0,0.11419322]
[1737463075899,0.3608,104690.0,104680.0,0.11319322]
[1737463076193,0.50340051,104690.0,104680.0,0.11319322]
[1737463077598,0.55120551,104690.0,104680.0,0.11519322]
[1737463077797,0.55120551,104690.0,104680.0,0.11619322]
[1737463079300,0.55120551,104690.0,104680.0,0.05224177]
[1737463079498,0.55120551,104690.0,104680.0,0.00443277]
[1737463079995,0.408605,104690.0,104680.0,0.00443277]
[1737463080296,0.408605,104690.0,104680.0,0.11419322]
[1737463081396,0.408605,104690.0,104680.0,0.04924177]
[1737463082903,0.408605,104690.0,104680.0,0.00143277]
[1737463083203,0.047809,104680.0,104670.0,0.21885942]
[1737463083496,0.499209,104680.0,104670.0,0.04795738]
[1737463083697,0.587609,104680.0,104670.0,0.04795738]
[1737463084800,0.587609,104680.0,104670.0,0.05695738]
[1737463085099,0.588609,104680.0,104670.0,0.06595738]
[1737463085300,0.588609,104680.0,104670.0,0.01814338]
[1737463086299,0.70288127,104680.0,104670.0,0.06595738]
[1737463086497,0.588609,104680.0,104670.0,0.06595738]
[1737463086808,0.41919475,104680.0,104670.0,0.12990883]
[1737463087004,0.05839475,104680.0,104670.0,0.06595738]
[1737463087200,0.048809,104680.0,104670.0,0.12990883]
[1737463088407,0.001,104680.0,104670.0,0.55466028]
[1737463088706,0.001,104680.0,104670.0,0.58813006]
[1737463088897,0.04794338,104700.0,104690.0,0.047805]
[1737463089298,0.04794338,104700.0,104690.0,0.29325645]
[1737463089502,0.04794338,104700.0,104690.0,0.22892236]
[1737463089702,0.00014338,104700.0,104690.0,0.65367381]
[1737463089910,0.00929558,104710.0,104690.0,0.65367381]
[1737463089911,0.1233,104720.0,104710.0,0.047796]
[1737463090098,0.171091,104720.0,104710.0,0.047796]
[1737463090908,0.047796,104710.0,104700.0,0.047799]
[1737463091214,0.408596,104710.0,104700.0,0.04794238]
[1737463091704,0.47254745,104710.0,104700.0,0.00014338]
[1737463091911,0.583796,104710.0,104700.0,0.00014338]
[1737463093404,0.583796,104710.0,104700.0,0.04794338]
[1737463093799,0.583796,104710.0,104700.0,0.00014338]
[1737463094706,0.583796,104710.0,104700.0,0.04794338]
[1737463095415,0.222996,104710.0,104700.0,0.04794338]
[1737463096004,0.583796,104710.0,104700.0,0.04794338]
[1737463097403,0.583796,104710.0,104700.0,0.00014338]
[1737463097610,0.64774745,104710.0,104700.0,0.00014338]
[1737463097810,0.583796,104710.0,104700.0,0.00014338]
[1737463098017,0.79071708,104710.0,104700.0,0.00014338]
[1737463098611,0.79071708,104710.0,104690.0,0.047803]
[1737463098813,0.4086,104700.0,104690.0,0.047803]
[1737463099711,0.4086,104700.0,104680.0,0.2636232]
[1737463099910,0.506205,104690.0,104680.0,0.31157258]
[1737463100215,0.145405,104690.0,104680.0,0.31157258]
[1737463100418,0.506205,104690.0,104680.0,0.31157258]
[1737463100718,0.506205,104690.0,104680.0,0.22077258]
[1737463100917,0.506205,104690.0,104680.0,0.22977258]
[1737463101113,0.506205,104690.0,104680.0,0.05838199]
[1737463101311,0.57015645,104690.0,104680.0,0.01057599]
[1737463101915,0.145405,104690.0,104680.0,0.07309483]
[1737463102228,0.0976,104690.0,104680.0,0.12090383]
[1737463102412,0.55171601,104700.0,104690.0,0.047805]
[1737463102613,0.55171601,104700.0,104680.0,0.15465038]
[1737463102614,0.047805,104690.0,104680.0,0.15465038]
[1737463102918,0.408605,104690.0,104680.0,0.06595038]
[1737463103121,0.19091401,104700.0,104690.0,0.047805]
[1737463103320,0.19091401,104700.0,104690.0,0.20475645]
[1737463103628,0.14311301,104700.0,104690.0,0.20675645]
[1737463104022,0.50391301,104700.0,104690.0,0.20675645]
[1737463104218,0.55171301,104700.0,104690.0,0.142805]
[1737463104521,0.55171301,104700.0,104690.0,0.143805]
[1737463104918,0.55171301,104700.0,104690.0,0.20775645]
[1737463105218,0.50391301,104700.0,104690.0,0.20775645]
[1737463105605,0.14311301,104700.0,104690.0,0.20775645]
[1737463105812,0.19091301,104700.0,104690.0,0.143805]
[1737463106418,0.19091301,104700.0,104690.0,0.050805]
[1737463106619,0.52313735,104700.0,104690.0,0.050805]
[1737463106819,0.52313735,104700.0,104690.0,0.003]
[1737463107727,0.5870888,104700.0,104690.0,0.003]
[1737463108025,0.52313735,104700.0,104690.0,0.003]
[1737463108625,0.5870888,104700.0,104690.0,0.003]
[1737463109122,0.52313735,104700.0,104690.0,0.003]
[1737463109426,0.5870888,104700.0,104690.0,0.003]
[1737463109620,0.52313735,104700.0,104690.0,0.003]
[1737463110127,0.72327656,104700.0,104690.0,0.003]
[1737463110822,0.72327656,104700.0,104690.0,0.050805]
[1737463111129,0.78722801,104700.0,104690.0,0.003]
[1737463113724,0.04781,104680.0,104660.0,0.54086039]
[1737463114026,0.408614,104670.0,104660.0,0.31233961]
[1737463114226,0.505914,104670.0,104660.0,0.31233961]
[1737463114428,0.145114,104670.0,104660.0,0.31090659]
[1737463114727,0.145114,104670.0,104660.0,0.26309059]
[1737463114916,0.145114,104670.0,104660.0,0.31990859]
[1737463115327,0.505914,104670.0,104660.0,0.38386004]
[1737463115619,0.047814,104670.0,104660.0,0.38386004]
[1737463115824,0.00114338,104680.0,104670.0,0.047814]
[1737463116027,0.1922039,104700.0,104670.0,0.5365169]
[1737463116222,0.1922039,104700.0,104690.0,0.047805]
[1737463116525,0.19077063,104700.0,104690.0,0.047805]
[1737463116823,0.19077063,104700.0,104690.0,0.142405]
[1737463117532,0.19077063,104700.0,104690.0,0.143405]
[1737463117730,0.36233418,104700.0,104690.0,0.143405]
[1737463117932,0.36233418,104700.0,104690.0,0.145405]
[1737463118633,0.36233418,104700.0,104690.0,0.20935645]
[1737463119021,0.36233418,104700.0,104690.0,0.145405]
[1737463119732,0.31453318,104700.0,104690.0,0.57015645]
[1737463120821,0.11441779,104700.0,104690.0,0.61940801]
[1737463123838,0.11441779,104700.0,104690.0,0.69470446]
[1737463124036,0.11441779,104700.0,104690.0,0.61940801]
[1737463124432,0.36247656,104710.0,104700.0,0.0478]
[1737463124433,0.04794338,104710.0,104700.0,0.0478]
[1737463124629,0.0478,104700.0,104690.0,0.60926582]
[1737463125024,0.0478,104700.0,104690.0,0.65849446]
[1737463125425,0.0478,104700.0,104690.0,0.60926582]
[1737463126144,0.1362,104700.0,104690.0,0.60926582]
[1737463126834,0.1362,104700.0,104690.0,0.40191137]
[1737463127033,0.1362,104700.0,104690.0,0.002]
[1737463127236,0.5912,104700.0,104690.0,0.002]
[1737463127638,0.5912,104700.0,104690.0,0.003]
[1737463128641,0.60058005,104700.0,104690.0,0.003]
[1737463128836,0.72848295,104700.0,104690.0,0.003]
[1737463129142,0.047805,104690.0,104680.0,0.16853397]
[1737463129343,0.47255645,104690.0,104680.0,0.02353397]
[1737463130033,0.047809,104680.0,104670.0,0.49063779]
[1737463130231,0.047814,104670.0,104660.0,0.40163591]
[1737463130530,0.047818,104660.0,104630.0,0.34278118]
[1737463130730,0.5365309,104640.0,104630.0,0.34278118]
[1737463131130,0.47257945,104640.0,104630.0,0.34278118]
[1737463131333,0.408628,104640.0,104630.0,0.34278118]
[1737463131940,0.47257945,104640.0,104630.0,0.39061318]
[1737463132939,0.47257945,104640.0,104630.0,0.34278118]
[1737463133136,0.47257945,104640.0,104630.0,0.34478118]
[1737463133441,0.47257945,104640.0,104630.0,0.34578118]
[1737463133645,0.47257945,104640.0,104630.0,0.39361318]
[1737463134139,0.36094338,104650.0,104630.0,0.39361318]
[1737463134341,0.47271883,104650.0,104640.0,0.136528]
[1737463134644,0.47271883,104650.0,104640.0,0.227028]
[1737463134839,0.47271883,104650.0,104640.0,0.1792]
[1737463135141,0.52292119,104650.0,104640.0,0.227028]
[1737463135644,0.52392119,104650.0,104640.0,0.227028]
[1737463136046,0.11529719,104650.0,104640.0,0.29097945]
[1737463136241,0.11529719,104650.0,104640.0,0.74297945]
[1737463138545,0.11429719,104650.0,104640.0,0.75197945]
[1737463138743,0.11429719,104650.0,104640.0,0.75297945]
[1737463139138,0.00014338,104650.0,104640.0,0.75297945]
[1737463139340,0.00014338,104650.0,104640.0,0.689028]
[1737463139536,0.47371783,104650.0,104640.0,0.2794]
[1737463139749,0.47371783,104650.0,104640.0,0.2814]
[1737463139941,0.11291783,104650.0,104640.0,0.2814]
[1737463140149,0.04896638,104650.0,104640.0,0.2814]
[1737463140347,0.04796638,104650.0,104640.0,0.2724]
[1737463140651,0.04796638,104650.0,104640.0,0.2734]
[1737463141650,0.47271783,104650.0,104640.0,0.003]
[1737463142149,0.11191783,104650.0,104640.0,0.003]
[1737463142348,0.40876638,104650.0,104640.0,0.003]
[1737463143446,0.00014338,104650.0,104640.0,0.11477845]
[1737463143653,0.00014338,104650.0,104640.0,0.47557845]
[1737463143849,0.00014338,104650.0,104640.0,0.411627]
[1737463144753,0.00014338,104650.0,104640.0,0.050827]
[1737463145139,0.00014338,104650.0,104640.0,0.47557845]
[1737463145550,2.34964628,104650.0,104620.0,0.00014338]
[1737463145746,0.11178345,104630.0,104620.0,0.00014338]
[1737463146053,0.047832,104630.0,104620.0,0.00014338]
[1737463146559,0.11178345,104630.0,104620.0,0.00014338]
[1737463146847,0.047832,104630.0,104620.0,0.04798038]
[1737463147250,0.11178345,104630.0,104620.0,0.00014338]
[1737463148554,0.25575308,104630.0,104620.0,0.01814338]
[1737463149159,0.19180163,104630.0,104620.0,0.06598038]
[1737463149453,0.19180163,104630.0,104620.0,0.06058453]
[1737463149651,0.14396963,104630.0,104620.0,0.42138453]
[1737463150452,0.17156355,104640.0,104630.0,0.047832]
[1737463150651,0.17156355,104640.0,104630.0,0.497732]
[1737463150851,0.17156355,104640.0,104630.0,0.56168345]
[1737463151051,0.17156355,104640.0,104630.0,0.497732]
[1737463152258,0.17156355,104640.0,104630.0,0.56168345]
[1737463152656,0.17156355,104640.0,104630.0,0.56268345]
[1737463153449,0.11400384,104650.0,104630.0,0.56268345]
[1737463153653,0.11400384,104650.0,104640.0,0.499527]
[1737463153849,0.22577829,104650.0,104640.0,0.408627]
[1737463154053,0.22577829,104650.0,104630.0,0.4509]
[1737463154054,0.047827,104640.0,104630.0,0.13807338]
[1737463154260,0.11177845,104640.0,104630.0,0.13807338]
[1737463154656,0.047827,104640.0,104630.0,0.13807338]
[1737463155057,0.047827,104640.0,104630.0,0.49887338]
[1737463155371,0.52262784,104650.0,104640.0,0.047827]
[1737463155558,0.16182784,104650.0,104640.0,0.047827]
[1737463155754,0.16182784,104650.0,104640.0,0.408627]
[1737463155960,0.05096738,104650.0,104640.0,0.408627]
[1737463156167,0.22253093,104650.0,104640.0,0.408627]
[1737463156569,0.21953093,104650.0,104640.0,0.417627]
[1737463156768,0.22053093,104650.0,104640.0,0.06624681]
[1737463157276,0.28348238,104650.0,104640.0,0.048827]
[1737463157863,0.28448238,104650.0,104640.0,0.056827]
[1737463158470,0.04796738,104650.0,104640.0,0.048827]
[1737463158672,0.04896738,104650.0,104640.0,0.048827]
[1737463158870,0.04896738,104650.0,104630.0,0.30732228]
[1737463159175,0.05196738,104650.0,104640.0,0.047827]
[1737463159368,0.05096738,104650.0,104640.0,0.047827]
[1737463160875,0.05196738,104650.0,104640.0,0.047827]
[1737463161978,0.11591883,104650.0,104640.0,0.047827]
[1737463162168,0.56541883,104650.0,104630.0,0.38981929]
[1737463162365,0.047827,104640.0,104630.0,0.43764929]
[1737463162672,0.047827,104640.0,104630.0,0.13967338]
[1737463162869,0.11177845,104640.0,104630.0,0.00014338]
[1737463163067,0.20047845,104640.0,104630.0,0.00014338]
[1737463163277,0.56127845,104640.0,104630.0,0.00014338]
[1737463166776,0.06395145,104630.0,104610.0,0.00946579]
[1737463167087,0.47258845,104630.0,104620.0,0.047836]
[1737463167384,0.47258845,104630.0,104610.0,0.047837]
[1737463167584,0.047837,104620.0,104610.0,0.047837]
[1737463167784,0.142237,104620.0,104610.0,0.04793256]
[1737463167987,0.142237,104620.0,104600.0,0.70374938]
[1737463168287,0.142237,104620.0,104610.0,0.047838]
[1737463168786,0.143237,104620.0,104610.0,0.056838]
[1737463169079,0.76824342,104620.0,104610.0,0.018]
[1737463169283,0.85744342,104620.0,104600.0,0.147845]
[1737463169473,0.56109245,104610.0,104600.0,0.1]
[1737463171385,0.047846,104600.0,104590.0,9.967e-05]
[1737463171578,0.47259745,104600.0,104590.0,9.967e-05]
[1737463172579,0.47359745,104600.0,104590.0,9.967e-05]
[1737463172980,0.47459745,104600.0,104590.0,9.967e-05]
[1737463173284,0.047855,104580.0,104570.0,0.00143397]
[1737463173486,0.47260645,104580.0,104570.0,0.00143397]
[1737463173688,0.56690645,104580.0,104570.0,0.00143397]
[1737463174381,0.502955,104580.0,104570.0,0.04929297]
[1737463174780,0.502955,104580.0,104570.0,0.00143397]
[1737463175182,0.56790645,104580.0,104570.0,0.005]
[1737463175489,0.56890645,104580.0,104570.0,0.005]
[1737463178790,0.92970645,104580.0,104570.0,0.005]
[1737463179382,0.865755,104580.0,104570.0,0.005]
[1737463179586,0.144155,104580.0,104570.0,0.052859]
[1737463179781,0.049855,104580.0,104570.0,0.11681045]
[1737463180184,0.049855,104580.0,104570.0,0.04462793]
[1737463180485,0.049855,104580.0,104570.0,0.46937938]
[1737463180883,0.049855,104580.0,104570.0,0.40542793]
[1737463181278,0.049855,104580.0,104570.0,0.46937938]
[1737463181792,0.049855,104580.0,104570.0,0.40542793]
[1737463183595,0.4291178,104590.0,104570.0,0.46937938]
[1737463183790,0.28565098,104620.0,104580.0,0.9366029]
[1737463183988,0.14305098,104620.0,104610.0,0.83339245]
[1737463184186,0.14305098,104620.0,104610.0,0.769441]
[1737463184397,0.25617009,104620.0,104610.0,0.769441]
[1737463184689,0.25617009,104620.0,104610.0,0.3608]
[1737463184889,0.30400709,104620.0,104610.0,0.3608]
[1737463185489,0.30500709,104620.0,104610.0,0.3618]
[1737463185685,0.30600709,104620.0,104610.0,0.3618]
[1737463185889,0.30600709,104620.0,104610.0,0.409641]
[1737463187297,0.25817009,104620.0,104610.0,0.409641]
[1737463187497,0.25817009,104620.0,104610.0,0.47359245]
[1737463188491,0.14437233,104620.0,104610.0,0.47359245]
[1737463191997,0.25616078,104620.0,104610.0,0.001]
[1737463192195,0.047841,104610.0,104600.0,0.40878838]
[1737463192499,0.047841,104610.0,104600.0,0.47273983]
[1737463193097,0.047841,104610.0,104600.0,0.40878838]
[1737463193597,0.047841,104610.0,104600.0,0.05298838]
[1737463193598,0.048841,104610.0,104600.0,0.05298838]
[1737463193794,0.048841,104610.0,104600.0,0.00514338]
[1737463193994,0.409641,104610.0,104600.0,0.00514338]
[1737463194191,0.47359245,104610.0,104580.0,0.408653]
[1737463194401,0.047855,104580.0,104570.0,0.588259]
[1737463194600,0.047855,104580.0,104570.0,0.134859]
[1737463194995,0.047855,104580.0,104570.0,0.19881045]